fUST/lending_fUST_20250821
["ID","MTS","AMOUNT","RATE_DAILY","PERIOD"]
[380478707,1755790243972,-445.82365362,0.00021917,3]
[380478709,1755790243981,-480.0,0.00021917,3]
[380478711,1755790243990,-480.0,0.00021917,3]
[380478713,1755790243999,-379.71613941,0.00021917,3]
[380478715,1755790244008,-480.0,0.00021917,3]
[380478717,1755790244017,-480.0,0.00021917,3]
[380478719,1755790244027,-480.0,0.00021917,3]
[380478721,1755790244036,-612.60436807,0.00021917,3]
[380478723,1755790244045,-552.58127224,0.00021917,3]
[380478725,1755790244054,-480.0,0.00021917,3]
[380478727,1755790244063,-480.0,0.00021917,3]
[380478730,1755790244074,-480.0,0.00021917,3]
[380478732,1755790244083,-655.4,0.00021917,3]
[380478734,1755790244093,-440.64707776,0.00021917,3]
[380478735,1755790244102,-480.4951606,0.00021917,3]
[380478738,1755790244111,-480.0,0.00021917,3]
[380478740,1755790244121,-480.0,0.00021917,3]
[380478743,1755790244131,-201.31364502,0.00021917,3]
[380478746,1755790244140,-480.0,0.00021917,3]
[380478748,1755790244150,-480.0,0.00021917,3]
[380478750,1755790244160,-480.0,0.00021917,3]
[380478752,1755790244172,-480.0,0.00021917,3]
[380478754,1755790244183,-481.92,0.00021917,3]
[380478756,1755790244192,-480.0,0.00021917,3]
[380478758,1755790244202,-735.72,0.00021917,3]
[380478759,1755790244214,-480.0,0.00021917,3]
[380478762,1755790244224,-480.0,0.00021917,3]
[380478763,1755790244233,-441.20518832,0.00021917,3]
[380478765,1755790244243,-480.0,0.00021917,3]
[380478767,1755790244253,-317.2146505,0.00021917,3]
[380478770,1755790244262,-480.0,0.00021917,3]
[380478772,1755790244273,-480.0,0.00021917,3]
[380478773,1755790244283,-480.0,0.00021917,3]
[380478775,1755790244293,-480.0,0.00021917,3]
[380478777,1755790244303,-480.0,0.00021917,3]
[380478779,1755790244312,-480.0,0.00021917,3]
[380478781,1755790244321,-480.0,0.00021917,3]
[380478783,1755790244330,-909.92,0.00021917,3]
[380478785,1755790244340,-480.0,0.00021917,3]
[380478787,1755790244350,-426.59956408,0.00021917,3]
[380478790,1755790244360,-480.0,0.00021917,3]
[380478792,1755790244370,-480.0,0.00021917,3]
[380478794,1755790244380,-450.0,0.00021917,3]
[380478795,1755790244392,-480.0,0.00021917,3]
[380478797,1755790244401,-480.0,0.00021917,3]
[380478800,1755790244410,-481.82182545,0.00021917,3]
[380478802,1755790244420,-455.7098185,0.00021917,3]
[380478804,1755790244431,-480.0,0.00021917,3]
[380478805,1755790244442,-832.96,0.00021917,3]
[380478807,1755790244452,-480.0,0.00021917,3]
[380478809,1755790244465,-480.0,0.00021917,3]
[380478812,1755790244475,-480.0,0.00021917,3]
[380478813,1755790244485,-480.20614319,0.00021917,3]
[380478834,1755790244677,-480.0,0.00021917,3]
[380478836,1755790244688,-761.36,0.00021917,3]
[380478838,1755790244697,-480.4652849,0.00021917,3]
[380478840,1755790244709,-480.0,0.00021917,3]
[380478842,1755790244721,-480.0,0.00021917,3]
[380478844,1755790244730,-443.24462786,0.00021917,3]
[380478846,1755790244739,-480.0,0.00021917,3]
[380478848,1755790244748,-480.0,0.00021917,3]
[380478850,1755790244757,-480.0,0.00021917,3]
[380478852,1755790244767,-480.0,0.00021917,3]
[380478854,1755790244776,-480.0,0.00021917,3]
[380478856,1755790244785,-480.0,0.00021917,3]
[380478858,1755790244795,-480.0,0.00021917,3]
[380478860,1755790244805,-544.7,0.00021917,3]
[380478862,1755790244814,-500.0,0.00021917,3]
[380478864,1755790244823,-500.0,0.00021917,3]
[380478866,1755790244833,-500.0,0.00021917,3]
[380478868,1755790244842,-500.0,0.00021917,3]
[380478870,1755790244851,-404.19674328,0.00021917,3]
[380478872,1755790244860,-480.0,0.00021917,3]
[380478873,1755790244869,-500.0,0.00021917,3]
[380478875,1755790244878,-500.0,0.00021917,3]
[380478877,1755790244888,-500.0,0.00021917,3]
[380478879,1755790244898,-500.0,0.00021917,3]
[380478881,1755790244907,-500.0,0.00021917,3]
[380478883,1755790244917,-500.0,0.00021917,3]
[380478885,1755790244926,-500.0,0.00021917,3]
[380478888,1755790244936,-500.0,0.00021917,3]
[380478890,1755790244945,-500.0,0.00021917,3]
[380478891,1755790244954,-500.0,0.00021917,3]
[380478893,1755790244967,-369.7,0.00021917,3]
[380478895,1755790244976,-422.00300137,0.00021917,3]
[380478897,1755790244985,-480.0,0.00021917,3]
[380478899,1755790244995,-480.0,0.00021917,3]
[380478901,1755790245004,-480.0,0.00021917,3]
[380478903,1755790245013,-480.0,0.00021917,3]
[380478905,1755790245023,-480.0,0.00021917,3]
[380478907,1755790245033,-480.0,0.00021917,3]
[380478909,1755790245042,-480.0,0.00021917,3]
[380478911,1755790245051,-480.0,0.00021917,3]
[380478913,1755790245061,-569.26,0.00021917,3]
[380478915,1755790245070,-493.7,0.00021917,3]
[380478917,1755790245080,-480.0,0.00021917,3]
[380478919,1755790245090,-480.0,0.00021917,3]
[380478921,1755790245099,-709.81,0.00021917,3]
[380478923,1755790245109,-1607.06,0.00021917,3]
[380478925,1755790245118,-296.27285758,0.00021917,3]
[380478927,1755790245127,-480.0,0.00021917,3]
[380478929,1755790245137,-480.0,0.00021917,3]
[380478931,1755790245147,-480.0,0.00021917,3]
[380478933,1755790245158,-480.91491125,0.00021917,3]
[380478935,1755790245167,-423.82668898,0.00021917,3]
[380478937,1755790245177,-480.0,0.00021917,3]
[380478939,1755790245187,-480.0,0.00021917,3]
[380478941,1755790245196,-693.38,0.00021917,3]
[380478943,1755790245206,-480.0,0.00021917,3]
[380478945,1755790245217,-480.0,0.00021917,3]
[380478947,1755790245227,-480.0,0.00021917,3]
[380478949,1755790245236,-510.62,0.00021917,3]
[380478951,1755790245245,-480.0,0.00021917,3]
[380478953,1755790245254,-443.40558596,0.00021917,3]
[380478955,1755790245263,-480.0,0.00021917,3]
[380478957,1755790245272,-480.0,0.00021917,3]
[380478959,1755790245282,-480.0,0.00021917,3]
[380478961,1755790245291,-1281.58,0.00021917,3]
[380478963,1755790245300,-480.0,0.00021917,3]
[380478965,1755790245309,-519.36741195,0.00021917,2]
[380478967,1755790245319,-514.25,0.00021917,3]
[380478969,1755790245328,-480.0,0.00021917,3]
[380478971,1755790245337,-480.0,0.00021917,3]
[380478973,1755790245347,-480.0,0.00021917,3]
[380478975,1755790245356,-775.01,0.00021917,3]
[380478977,1755790245365,-480.0,0.00021917,3]
[380478979,1755790245375,-480.0,0.00021917,3]
[380478981,1755790245384,-480.0,0.00021917,3]
[380478983,1755790245393,-480.0,0.00021917,3]
[380478985,1755790245402,-192.30718099,0.00021917,3]
[380478987,1755790245412,-480.0,0.00021917,3]
[380478989,1755790245422,-480.0,0.00021917,3]
[380478991,1755790245432,-67.93311959,0.00021917,3]
[380478994,1755790245451,-412.06688041,0.00021917,3]
[380478996,1755790245460,-480.0,0.00021917,3]
[380478998,1755790245474,-480.0,0.00021917,3]
[380479000,1755790245483,-480.0,0.00021917,3]
[380479002,1755790245492,-480.0,0.00021917,3]
[380479004,1755790245500,-497.24,0.00021917,3]
[380479006,1755790245510,-503.52013504,0.00021917,3]
[380479008,1755790245519,-480.0,0.00021917,3]
[380479009,1755790245528,-480.0,0.00021917,3]
[380479011,1755790245537,-480.0,0.00021917,3]
[380479013,1755790245546,-480.0,0.00021917,3]
[380479015,1755790245555,-827.6,0.00021917,3]
[380479017,1755790245563,-480.0,0.00021917,3]
[380479019,1755790245572,-480.0,0.00021917,3]
[380479021,1755790245581,-480.0,0.00021917,3]
[380479023,1755790245591,-460.18000172,0.00021917,3]
[380479026,1755790245605,-480.0,0.00021917,3]
[380479027,1755790245615,-480.0,0.00021917,3]
[380479030,1755790245625,-480.0,0.00021917,3]
[380479031,1755790245636,-480.0,0.00021917,3]
[380479033,1755790245645,-480.0,0.00021917,3]
[380479035,1755790245655,-460.58926929,0.00021917,3]
[380479037,1755790245666,-480.0,0.00021917,3]
[380479039,1755790245675,-480.0,0.00021917,3]
[380479041,1755790245684,-480.0,0.00021917,3]
[380479043,1755790245693,-500.0,0.00021917,3]
[380479045,1755790245703,-1956.3,0.00021917,3]
[380479047,1755790245715,-506.64,0.00021917,3]
[380479049,1755790245724,-480.0,0.00021917,3]
[380479052,1755790245734,-480.0,0.00021917,3]
[380479056,1755790245745,-1061.49,0.00021917,3]
[380479059,1755790245754,-824.79,0.00021917,3]
[380479063,1755790245764,-480.0,0.00021917,3]
[380479066,1755790245773,-480.0,0.00021917,3]
[380479069,1755790245782,-480.0,0.00021917,3]
[380479073,1755790245792,-480.0,0.00021917,3]
[380479076,1755790245801,-460.0,0.00021917,3]
[380479079,1755790245810,-1144.31,0.00021917,3]
[380479082,1755790245819,-460.0,0.00021917,3]
[380479085,1755790245828,-611.46856462,0.00021917,3]
[380479088,1755790245837,-480.0,0.00021917,3]
[380479091,1755790245847,-207.23279483,0.00021917,3]
[380479094,1755790245856,-281.91187479,0.00021917,3]
[380479155,1755790246366,-180.03835803,0.00021917,3]
[380479157,1755790246376,-1877.86,0.00021917,3]
[380479159,1755790246385,-480.0,0.00021917,3]
[380479161,1755790246394,-480.0,0.00021917,3]
[380479163,1755790246403,-1080.67,0.00021917,3]
[380479165,1755790246412,-480.0,0.00021917,3]
[380479167,1755790246420,-151.0,0.00021917,2]
[380479169,1755790246428,-461.63524623,0.00021917,3]
[380479171,1755790246438,-441.79488539,0.00021917,3]
[380479173,1755790246448,-480.68711543,0.00021917,3]
[380479175,1755790246457,-218.69221051,0.00021917,3]
[380479177,1755790246469,-480.0,0.00021917,3]
[380479179,1755790246478,-151.0,0.00021917,2]
[380479181,1755790246488,-480.0,0.00021917,3]
[380479183,1755790246498,-480.0,0.00021917,3]
[380479185,1755790246507,-480.0,0.00021917,3]
[380479187,1755790246516,-480.0,0.00021917,3]
[380479189,1755790246525,-480.0,0.00021917,3]
[380479191,1755790246535,-332.93338525,0.00021917,3]
[380479193,1755790246545,-480.0,0.00021917,3]
[380479195,1755790246554,-523.13102575,0.00021917,3]
[380479197,1755790246563,-480.0,0.00021917,3]
[380479199,1755790246572,-577.8490764,0.00021917,3]
[380479201,1755790246582,-480.0,0.00021917,3]
[380479203,1755790246591,-480.0,0.00021917,3]
[380479205,1755790246601,-480.0,0.00021917,3]
[380479207,1755790246610,-480.0,0.00021917,3]
[380479209,1755790246621,-480.0,0.00021917,3]
[380479212,1755790246635,-480.0,0.00021917,3]
[380479214,1755790246644,-480.0,0.00021917,3]
[380479215,1755790246654,-480.0,0.00021917,3]
[380479218,1755790246663,-480.0,0.00021917,3]
[380479219,1755790246674,-497.78,0.00021917,3]
[380479221,1755790246683,-541.04,0.00021917,3]
[380479223,1755790246692,-480.0,0.00021917,3]
[380479225,1755790246702,-480.0,0.00021917,3]
[380479228,1755790246711,-480.0,0.00021917,3]
[380479230,1755790246723,-480.0,0.00021917,3]
[380479232,1755790246733,-480.0,0.00021917,3]
[380479234,1755790246743,-480.0,0.00021917,3]
[380479236,1755790246752,-480.0,0.00021917,3]
[380479238,1755790246761,-480.0,0.00021917,3]
[380479240,1755790246770,-480.0,0.00021917,3]
[380479242,1755790246779,-480.0,0.00021917,3]
[380479243,1755790246788,-480.0,0.00021917,3]
[380479245,1755790246797,-554.98,0.00021917,3]
[380479247,1755790246808,-723.61,0.00021917,3]
[380479249,1755790246817,-480.0,0.00021917,3]
[380479251,1755790246826,-480.0,0.00021917,3]
[380479253,1755790246835,-678.46,0.00021917,3]
[380479256,1755790246845,-480.0,0.00021917,3]
[380479258,1755790246854,-506.15144552,0.00021917,3]
[380479259,1755790246863,-480.0,0.00021917,3]
[380479262,1755790246872,-440.0,0.00021917,3]
[380479264,1755790246882,-480.0,0.00021917,3]
[380479265,1755790246891,-480.0,0.00021917,3]
[380479268,1755790246900,-480.0,0.00021917,3]
[380479270,1755790246910,-480.0,0.00021917,3]
[380479271,1755790246919,-480.0,0.00021917,3]
[380479273,1755790246928,-480.0,0.00021917,3]
[380479275,1755790246937,-1714.83,0.00021917,3]
[380479277,1755790246946,-627.12,0.00021917,3]
[380479279,1755790246955,-480.0,0.00021917,3]
[380479281,1755790246966,-534.29,0.00021917,3]
[380479283,1755790246976,-480.0,0.00021917,3]
[380479285,1755790246985,-648.74,0.00021917,3]
[380479287,1755790246994,-480.0,0.00021917,3]
[380479289,1755790247004,-640.91,0.00021917,3]
[380479291,1755790247014,-480.0,0.00021917,3]
[380479293,1755790247023,-813.8,0.00021917,3]
[380479295,1755790247033,-480.0,0.00021917,3]
[380479297,1755790247042,-763.41,0.00021917,3]
[380479299,1755790247052,-480.0,0.00021917,3]
[380479301,1755790247062,-682.12,0.00021917,3]
[380479303,1755790247071,-480.0,0.00021917,3]
[380479305,1755790247080,-480.0,0.00021917,3]
[380479307,1755790247089,-624.87,0.00021917,3]
[380479309,1755790247098,-480.0,0.00021917,3]
[380479311,1755790247108,-480.0,0.00021917,3]
[380479313,1755790247116,-611.8,0.00021917,3]
[380479315,1755790247125,-480.0,0.00021917,3]
[380479317,1755790247134,-480.0,0.00021917,3]
[380479319,1755790247144,-596.43,0.00021917,3]
[380479321,1755790247154,-602.89,0.00021917,3]
[380479323,1755790247163,-480.0,0.00021917,3]
[380479325,1755790247174,-380.0,0.00021917,3]
[380479327,1755790247184,-2099.68,0.00021917,3]
[380479329,1755790247193,-480.0,0.00021917,3]
[380479331,1755790247203,-480.0,0.00021917,3]
[380479333,1755790247212,-480.0,0.00021917,3]
[380479335,1755790247223,-1000.0,0.00021917,3]
[380479337,1755790247233,-480.0,0.00021917,3]
[380479339,1755790247242,-480.0,0.00021917,3]
[380479341,1755790247251,-480.0,0.00021917,3]
[380479343,1755790247260,-783.64,0.00021917,3]
[380479345,1755790247270,-480.0,0.00021917,3]
[380479347,1755790247282,-480.0,0.00021917,3]
[380479349,1755790247291,-480.0,0.00021917,3]
[380479351,1755790247301,-480.0,0.00021917,3]
[380479353,1755790247310,-480.0,0.00021917,3]
[380479354,1755790247319,-480.0,0.00021917,3]
[380479356,1755790247328,-528.65364038,0.00021917,3]
[380479359,1755790247338,-404.10101837,0.00021917,3]
[380479361,1755790247348,-480.0,0.00021917,3]
[380479363,1755790247357,-1092.37,0.00021917,3]
[380479365,1755790247367,-480.0,0.00021917,3]
[380479367,1755790247376,-480.0,0.00021917,3]
[380479369,1755790247386,-480.0,0.00021917,3]
[380479371,1755790247395,-859.72,0.00021917,3]
[380479372,1755790247405,-440.0,0.00021917,3]
[380479375,1755790247415,-445.18732883,0.00021917,3]
[380479376,1755790247424,-480.0,0.00021917,3]
[380479379,1755790247434,-480.0,0.00021917,3]
[380479381,1755790247444,-480.0,0.00021917,3]
[380479383,1755790247454,-480.0,0.00021917,3]
[380479385,1755790247463,-480.0,0.00021917,3]
[380479387,1755790247475,-780.16,0.00021917,3]
[380479389,1755790247485,-480.0,0.00021917,3]
[380479391,1755790247495,-1232.71,0.00021917,3]
[380479393,1755790247505,-165.05593705,0.00021917,3]
[380479395,1755790247515,-480.0,0.00021917,3]
[380479397,1755790247524,-2105.01,0.00021917,3]
[380479398,1755790247534,-334.64396176,0.00021917,3]
[380479400,1755790247544,-480.0,0.00021917,3]
[380479402,1755790247553,-1084.84,0.00021917,3]
[380479404,1755790247562,-480.0,0.00021917,3]
[380479406,1755790247572,-480.0,0.00021917,3]
[380479408,1755790247582,-480.0,0.00021917,3]
[380479410,1755790247592,-480.0,0.00021917,3]
[380479412,1755790247602,-480.0,0.00021917,3]
[380479414,1755790247611,-480.0,0.00021917,3]
[380479416,1755790247621,-480.0,0.00021917,3]
[380479418,1755790247634,-533.8,0.00021917,3]
[380479420,1755790247643,-480.0,0.00021917,3]
[380479422,1755790247653,-480.0,0.00021917,3]
[380479424,1755790247662,-442.01476653,0.00021917,3]
[380479426,1755790247673,-480.0,0.00021917,3]
[380479428,1755790247683,-1604.81,0.00021917,3]
[380479430,1755790247692,-480.0,0.00021917,3]
[380479432,1755790247703,-500.0,0.00021917,3]
[380479434,1755790247712,-500.0,0.00021917,3]
[380479436,1755790247724,-500.0,0.00021917,3]
[380479438,1755790247734,-500.0,0.00021917,3]
[380479440,1755790247743,-500.0,0.00021917,3]
[380479442,1755790247752,-839.77,0.00021917,3]
[380479444,1755790247762,-500.0,0.00021917,3]
[380479446,1755790247771,-500.0,0.00021917,3]
[380479448,1755790247781,-480.0,0.00021917,3]
[380479450,1755790247792,-500.0,0.00021917,3]
[380479452,1755790247801,-500.0,0.00021917,3]
[380479454,1755790247810,-500.0,0.00021917,3]
[380479456,1755790247819,-500.0,0.00021917,3]
[380479458,1755790247829,-500.0,0.00021917,3]
[380479460,1755790247838,-480.0,0.00021917,3]
[380479462,1755790247847,-500.0,0.00021917,3]
[380479463,1755790247855,-500.0,0.00021917,3]
[380479465,1755790247865,-500.0,0.00021917,3]
[380479467,1755790247874,-480.0,0.00021917,3]
[380479469,1755790247883,-480.0,0.00021917,3]
[380479471,1755790247894,-440.56391188,0.00021917,3]
[380479473,1755790247903,-972.44,0.00021917,3]
[380479475,1755790247912,-480.0,0.00021917,3]
[380479477,1755790247921,-567.67,0.00021917,3]
[380479479,1755790247930,-500.0,0.00021917,3]
[380479481,1755790247940,-500.0,0.00021917,3]
[380479483,1755790247949,-500.0,0.00021917,3]
[380479485,1755790247958,-500.0,0.00021917,3]
[380479487,1755790247968,-500.0,0.00021917,3]
[380479489,1755790247978,-500.0,0.00021917,3]
[380479491,1755790247987,-500.0,0.00021917,3]
[380479493,1755790247996,-543.71100333,0.00021917,3]
[380479495,1755790248005,-480.0,0.00021917,3]
[380479497,1755790248015,-480.0,0.00021917,3]
[380479499,1755790248026,-2371.54,0.00021917,3]
[380479501,1755790248036,-480.0,0.00021917,3]
[380479503,1755790248046,-480.0,0.00021917,3]
[380479505,1755790248055,-480.0,0.00021917,3]
[380479507,1755790248065,-924.35,0.00021917,3]
[380479509,1755790248076,-480.0,0.00021917,3]
[380479510,1755790248085,-480.0,0.00021917,3]
[380479511,1755790248095,-1400.36,0.00021917,3]
[380479512,1755790248105,-480.0,0.00021917,3]
[380479513,1755790248115,-480.0,0.00021917,3]
[380479514,1755790248126,-480.0,0.00021917,3]
[380479515,1755790248135,-480.0,0.00021917,3]
[380479516,1755790248145,-735.33,0.00021917,3]
[380479517,1755790248156,-480.0,0.00021917,3]
[380479518,1755790248166,-480.0,0.00021917,3]
[380479519,1755790248176,-480.0,0.00021917,3]
[380479520,1755790248186,-480.0,0.00021917,3]
[380479521,1755790248195,-480.0,0.00021917,3]
[380479522,1755790248205,-480.29759634,0.00021917,3]
[380479523,1755790248216,-480.0,0.00021917,3]
[380479524,1755790248227,-480.0,0.00021917,3]
[380479525,1755790248236,-480.0,0.00021917,3]
[380479526,1755790248245,-480.0,0.00021917,3]
[380479527,1755790248255,-480.0,0.00021917,3]
[380479528,1755790248264,-480.0,0.00021917,3]
[380479529,1755790248273,-440.0,0.00021917,3]
[380479530,1755790248282,-268.0,0.00021917,3]
[380479532,1755790248291,-151.0,0.00021917,2]
[380479533,1755790248300,-480.0,0.00021917,3]
[380479535,1755790248310,-460.50417461,0.00021917,3]
[380479537,1755790248319,-491.49945293,0.00021917,3]
[380479539,1755790248329,-561.44,0.00021917,3]
[380479541,1755790248339,-480.0,0.00021917,3]
[380479543,1755790248348,-2487.15,0.00021917,3]
[380479545,1755790248357,-330.47430461,0.00021917,3]
[380479546,1755790248367,-480.0,0.00021917,3]
[380479548,1755790248376,-306.8640188,0.00021917,3]
[380479550,1755790248386,-480.0,0.00021917,3]
[380479552,1755790248395,-480.0,0.00021917,3]
[380479554,1755790248404,-529.03,0.00021917,3]
[380479556,1755790248414,-480.0,0.00021917,3]
[380479558,1755790248424,-590.05,0.00021917,3]
[380479560,1755790248437,-1079.09,0.00021917,3]
[380479562,1755790248447,-151.0,0.00021917,2]
[380479564,1755790248457,-480.0,0.00021917,3]
[380479566,1755790248467,-480.38282193,0.00021917,3]
[380479568,1755790248477,-480.0,0.00021917,3]
[380479570,1755790248486,-533.04,0.00021917,3]
[380479572,1755790248495,-1707.37,0.00021917,3]
[380479573,1755790248505,-480.0,0.00021917,3]
[380479575,1755790248514,-1030.08,0.00021917,3]
[380479577,1755790248523,-493.98,0.00021917,3]
[380479579,1755790248533,-480.0,0.00021917,3]
[380479581,1755790248542,-460.0,0.00021917,3]
[380479583,1755790248551,-1224.74,0.00021917,3]
[380479585,1755790248561,-480.0,0.00021917,3]
[380479587,1755790248570,-480.0,0.00021917,3]
[380479589,1755790248579,-628.59,0.00021917,3]
[380479591,1755790248588,-4538.9,0.00021917,3]
[380479593,1755790248597,-2361.18,0.00021917,3]
[380479595,1755790248607,-1803.16,0.00021917,3]
[380479597,1755790248618,-1009.55,0.00021917,3]
[380479599,1755790248629,-916.1,0.00021917,3]
[380479601,1755790248639,-441.59428367,0.00021917,3]
[380479603,1755790248648,-480.0,0.00021917,3]
[380479605,1755790248658,-480.0,0.00021917,3]
[380479607,1755790248668,-653.02,0.00021917,3]
[380479609,1755790248679,-480.0,0.00021917,3]
[380479626,1755790248861,-900.07,0.00021917,3]
[380479627,1755790248871,-677.45,0.00021917,3]
[380479628,1755790248881,-719.74,0.00021917,3]
[380479629,1755790248891,-441.82025966,0.00021917,3]
[380479630,1755790248902,-480.0,0.00021917,3]
[380479631,1755790248911,-4745.57,0.00021917,3]
[380479632,1755790248920,-284.40030026,0.00021917,3]
[380479633,1755790248930,-1764.14,0.00021917,3]
[380479634,1755790248939,-480.0,0.00021917,3]
[380479635,1755790248948,-480.0,0.00021917,3]
[380479636,1755790248957,-523.18,0.00021917,3]
[380479637,1755790248968,-480.0,0.00021917,3]
[380479638,1755790248977,-480.0,0.00021917,3]
[380479639,1755790248986,-480.0,0.00021917,3]
[380479640,1755790248996,-480.0,0.00021917,3]
[380479641,1755790249005,-680.44,0.00021917,3]
[380479642,1755790249015,-480.0,0.00021917,3]
[380479643,1755790249024,-241.940684,0.00021917,2]
[380479644,1755790249034,-1226.45,0.00021917,3]
[380479645,1755790249043,-480.0,0.00021917,3]
[380479646,1755790249053,-480.0,0.00021917,3]
[380479647,1755790249063,-480.0,0.00021917,3]
[380479648,1755790249073,-503.51,0.00021917,3]
[380479649,1755790249082,-1088.47,0.00021917,3]
[380479650,1755790249091,-480.0,0.00021917,3]
[380479651,1755790249101,-1673.24,0.00021917,3]
[380479652,1755790249110,-480.0,0.00021917,3]
[380479653,1755790249119,-9357.34,0.00021917,3]
[380479654,1755790249129,-500.0,0.00021917,3]
[380479655,1755790249139,-667.01,0.00021917,3]
[380479656,1755790249148,-605.26,0.00021917,3]
[380479657,1755790249157,-480.0,0.00021917,3]
[380479658,1755790249166,-480.0,0.00021917,3]
[380479659,1755790249176,-507.01,0.00021917,3]
[380479660,1755790249185,-544.58,0.00021917,3]
[380479661,1755790249194,-10625.66,0.00021917,3]
[380479662,1755790249204,-480.0,0.00021917,3]
[380479663,1755790249214,-480.0,0.00021917,3]
[380479664,1755790249225,-151.0,0.00021917,2]
[380479665,1755790249235,-492.66,0.00021917,3]
[380479666,1755790249244,-480.0,0.00021917,3]
[380479667,1755790249254,-480.0,0.00021917,3]
[380479668,1755790249263,-894.52,0.00021917,3]
[380479669,1755790249272,-383.01729401,0.00021917,3]
[380479670,1755790249281,-692.95,0.00021917,3]
[380479671,1755790249290,-480.0,0.00021917,3]
[380479672,1755790249300,-2153.45,0.00021917,3]
[380479673,1755790249309,-5312.34,0.00021917,3]
[380479674,1755790249318,-480.0,0.00021917,3]
[380479675,1755790249328,-574.53,0.00021917,3]
[380479676,1755790249337,-1269.21,0.00021917,3]
[380479677,1755790249346,-480.0,0.00021917,3]
[380479678,1755790249356,-480.0,0.00021917,3]
[380479679,1755790249365,-1817.56,0.00021917,3]
[380479680,1755790249374,-508.50592863,0.00021917,3]
[380479681,1755790249383,-480.0,0.00021917,3]
[380479682,1755790249393,-1586.67,0.00021917,3]
[380479683,1755790249402,-1056.71,0.00021917,3]
[380479684,1755790249411,-511.49,0.00021917,3]
[380479685,1755790249420,-887.77,0.00021917,3]
[380479686,1755790249429,-1565.64,0.00021917,3]
[380479687,1755790249438,-480.0,0.00021917,3]
[380479688,1755790249447,-5998.72,0.00021917,3]
[380479689,1755790249457,-758.95,0.00021917,3]
[380479690,1755790249468,-480.0,0.00021917,3]
[380479691,1755790249477,-480.0,0.00021917,3]
[380479692,1755790249486,-480.0,0.00021917,3]
[380479693,1755790249495,-662.86,0.00021917,3]
[380479694,1755790249505,-480.0,0.00021917,3]
[380479695,1755790249514,-480.0,0.00021917,3]
[380479696,1755790249523,-480.0,0.00021917,3]
[380479697,1755790249532,-480.0,0.00021917,3]
[380479698,1755790249541,-480.0,0.00021917,3]
[380479699,1755790249551,-1136.47,0.00021917,3]
[380479700,1755790249560,-480.0,0.00021917,3]
[380479701,1755790249569,-480.0,0.00021917,3]
[380479702,1755790249579,-480.0,0.00021917,3]
[380479703,1755790249588,-536.07,0.00021917,3]
[380479704,1755790249597,-1667.1,0.00021917,3]
[380479705,1755790249607,-491.32451023,0.00021917,3]
[380479706,1755790249616,-480.0,0.00021917,3]
[380479707,1755790249627,-480.0,0.00021917,3]
[380479708,1755790249637,-480.0,0.00021917,3]